bitfinex/quotes_BTCUSD_20250607
["timestamp","ask_amount","ask_price","bid_price","bid_amount"]
[1749294525286,0.04408641,105310.0,105300.0,0.96121428]
[1749294525701,0.06187917,105310.0,105300.0,0.96121428]
[1749294526185,0.06189876,105310.0,105300.0,0.96121428]
[1749294526585,0.07139453,105310.0,105300.0,0.96121428]
[1749294527133,0.05358218,105310.0,105300.0,0.71485428]
[1749294527385,0.07139453,105310.0,105300.0,0.71485428]
[1749294527585,0.26131001,105310.0,105300.0,0.70535824]
[1749294527791,0.26131001,105310.0,105300.0,0.72165824]
[1749294528107,0.26130995,105310.0,105300.0,0.72165824]
[1749294529091,0.26130995,105310.0,105300.0,0.70535824]
[1749294530308,0.23400234,105310.0,105300.0,0.68636589]
[1749294530512,0.23400234,105310.0,105300.0,0.70535824]
[1749294530712,0.25181463,105310.0,105300.0,0.70535824]
[1749294530899,0.23400234,105310.0,105300.0,0.70535824]
[1749294531031,0.25181703,105310.0,105300.0,0.70535824]
[1749294531233,0.23400234,105310.0,105300.0,0.70535824]
[1749294531452,0.25181703,105310.0,105300.0,0.70535824]
[1749294531927,0.06190155,105310.0,105300.0,0.70535824]
[1749294532050,0.06190146,105310.0,105300.0,0.71485428]
[1749294532262,0.06190143,105310.0,105300.0,0.71485428]
[1749294532687,0.0619014,105310.0,105300.0,0.71485428]
[1749294532899,0.0619012,105310.0,105300.0,0.71485428]
[1749294533671,0.07139697,105310.0,105300.0,0.71485428]
[1749294534300,0.05358254,105310.0,105300.0,0.71485428]
[1749294534625,0.26131245,105310.0,105300.0,0.68636589]
[1749294534804,0.26131245,105310.0,105300.0,0.69586202]
[1749294535003,0.24349802,105310.0,105300.0,0.69586202]
[1749294535440,0.05358254,105310.0,105300.0,0.70535806]
[1749294535941,0.07139673,105310.0,105300.0,0.70535806]
[1749294536092,0.05358254,105310.0,105300.0,0.70535806]
[1749294536306,0.07139673,105310.0,105300.0,0.70535806]
[1749294537118,0.07139688,105310.0,105300.0,0.70535806]
[1749294537782,0.24349802,105310.0,105300.0,0.69586202]
[1749294538201,0.26131236,105310.0,105300.0,0.68636589]
[1749294538403,0.26131236,105310.0,105300.0,0.69586211]
[1749294538610,0.24349802,105310.0,105300.0,0.70535824]
[1749294538734,0.05358254,105310.0,105300.0,0.71485428]
[1749294539090,0.08729664,105310.0,105300.0,0.71485428]
[1749294539348,0.08729664,105310.0,105300.0,0.70535824]
[1749294539850,0.07139664,105310.0,105300.0,0.70535824]
[1749294540030,0.26131212,105310.0,105300.0,0.69586211]
[1749294540241,0.25181662,105310.0,105300.0,0.69586211]
[1749294540438,0.25181634,105310.0,105300.0,0.69586211]
[1749294541217,0.23400252,105310.0,105300.0,0.69586211]
[1749294541417,0.25181634,105310.0,105300.0,0.69586211]
[1749294541621,0.25181634,105310.0,105300.0,0.67686958]
[1749294541803,0.24232075,105310.0,105300.0,0.68636589]
[1749294541999,0.23282507,105310.0,105300.0,0.666973]
[1749294542225,0.23282507,105310.0,105300.0,0.68596607]
[1749294542466,0.21501125,105310.0,105300.0,0.68596607]
[1749294542668,0.24852528,105310.0,105300.0,0.68596625]
[1749294542874,0.24852347,105310.0,105300.0,0.68596625]
[1749294543092,0.23071125,105310.0,105300.0,0.68596625]
[1749294543294,0.24852347,105310.0,105300.0,0.68596625]
[1749294543508,0.24852347,105310.0,105300.0,0.69546274]
[1749294544141,0.78523698,105310.0,105300.0,0.68596625]
[1749294544345,0.78523715,105310.0,105300.0,0.68596625]
[1749294544749,0.78523719,105310.0,105300.0,0.68596625]
[1749294545136,0.76742476,105310.0,105300.0,0.68596625]
[1749294545346,0.23902791,105310.0,105300.0,0.68596625]
[1749294545693,0.23902789,105310.0,105300.0,0.69546274]
[1749294546108,0.22121548,105310.0,105300.0,0.69546274]
[1749294546426,0.23902789,105310.0,105300.0,0.69546274]
[1749294546626,0.22121548,105310.0,105300.0,0.69546274]
[1749294546887,0.78523717,105310.0,105300.0,0.69546274]
[1749294547062,0.76742476,105310.0,105300.0,0.69546274]
[1749294547261,0.78523776,105310.0,105300.0,0.69546274]
[1749294547458,0.76742476,105310.0,105300.0,0.69546274]
[1749294547686,0.78523776,105310.0,105300.0,0.69546274]
[1749294547890,0.23902848,105310.0,105300.0,0.69546274]
[1749294548140,0.22121548,105310.0,105300.0,0.69546274]
[1749294548394,0.23902761,105310.0,105300.0,0.69546274]
[1749294548622,0.22121548,105310.0,105300.0,0.70495914]
[1749294548790,0.23902761,105310.0,105300.0,0.70495914]
[1749294549019,0.22121548,105310.0,105300.0,0.70495914]
[1749294549839,0.23902761,105310.0,105300.0,0.70495914]
[1749294550533,0.23071107,105310.0,105300.0,0.70495914]
[1749294550713,0.2485232,105310.0,105300.0,0.70495914]
[1749294551174,0.2485232,105310.0,105300.0,0.71445527]
[1749294551396,0.05240304,105310.0,105300.0,0.71445464]
[1749294551832,0.01781213,105310.0,105300.0,1.8068732]
[1749294552049,0.04428056,105330.0,105320.0,0.20888674]
[1749294552275,0.06209097,105330.0,105320.0,0.69470046]
[1749294552482,0.26146424,105330.0,105320.0,0.68520622]
[1749294554796,0.60177516,105330.0,105320.0,0.70419488]
[1749294555369,0.6029839,105330.0,105320.0,0.6852064]
[1749294555572,0.6029839,105330.0,105320.0,0.69470091]
[1749294555573,0.79286332,105330.0,105320.0,0.69470091]
[1749294556088,0.82564226,105330.0,105320.0,0.6852064]
[1749294556214,0.82564226,105330.0,105320.0,0.694701]
[1749294556418,0.63576266,105330.0,105320.0,0.71368975]
[1749294556995,0.08955338,105330.0,105320.0,0.71368975]
[1749294557186,1.11077645,105330.0,105320.0,0.71368975]
[1749294557400,1.12855539,105330.0,105320.0,0.71368975]
[1749294557548,1.11077645,105330.0,105320.0,0.71368975]
[1749294558090,0.55507338,105330.0,105320.0,0.71368975]
[1749294558282,1.10128266,105330.0,105320.0,0.71368975]
[1749294558864,1.29116253,105330.0,105320.0,0.6852064]
[1749294559094,1.11077699,105330.0,105320.0,0.70419533]
[1749294559292,1.30065641,105330.0,105320.0,0.694701]
[1749294559493,1.31843067,105330.0,105320.0,0.694701]
[1749294559696,1.12854932,105330.0,105320.0,0.70419533]
[1749294560631,1.12854932,105330.0,105320.0,0.694701]
[1749294560793,1.31842874,105330.0,105320.0,0.6852064]
[1749294560990,1.31842874,105330.0,105320.0,0.69470082]
[1749294560991,1.13804333,105330.0,105320.0,0.69470082]
[1749294561222,1.32503544,105330.0,105320.0,0.67571171]
[1749294561850,1.13515602,105330.0,105320.0,0.69470064]
[1749294562369,1.32503544,105330.0,105320.0,0.67571171]
[1749294562484,1.30726307,105330.0,105320.0,0.9315264]
[1749294562689,1.32503605,105330.0,105320.0,0.9315264]
[1749294562928,1.32503602,105330.0,105320.0,0.9315264]
[1749294563358,1.32503602,105330.0,105320.0,0.95051533]
[1749294564543,1.30726307,105330.0,105320.0,0.95051533]
[1749294565070,1.32503752,105330.0,105320.0,0.941021]
[1749294565249,1.32503752,105330.0,105320.0,0.95051533]
[1749294565652,1.32503752,105330.0,105320.0,0.9315264]
[1749294566102,1.32503757,105330.0,105320.0,0.94102082]
[1749294566538,1.32503884,105330.0,105320.0,0.94102082]
[1749294566721,1.28827637,105330.0,105320.0,0.94102082]
[1749294566926,1.08229695,105330.0,105320.0,0.95051515]
[1749294567367,1.08229695,105330.0,105320.0,0.96000939]
[1749294567654,1.10007319,105330.0,105320.0,0.96000939]
[1749294567876,1.08229659,105330.0,105320.0,0.96000939]
[1749294568291,0.52659325,105330.0,105320.0,0.96000939]
[1749294568495,0.55507399,105330.0,105320.0,0.96000939]
[1749294568703,0.56456787,105330.0,105320.0,0.96000939]
[1749294569265,0.56456787,105330.0,105320.0,0.95051515]
[1749294569491,0.74495404,105330.0,105320.0,0.95051551]
[1749294570319,0.73546061,105330.0,105320.0,0.95051551]
[1749294570518,0.73546061,105330.0,105320.0,0.941021]
[1749294571389,1.28166989,105330.0,105320.0,0.941021]
[1749294571875,1.28166989,105330.0,105320.0,0.95051551]
[1749294572502,1.28166989,105330.0,105320.0,0.941021]
[1749294572709,1.29945629,105330.0,105320.0,0.941021]
[1749294573099,1.29945629,105330.0,105320.0,0.561101]
[1749294573320,1.29566898,105330.0,105320.0,0.92231162]
[1749294573534,1.27788258,105330.0,105320.0,0.91281693]
[1749294573740,1.27788258,105330.0,105320.0,0.93180631]
[1749294573893,1.29566945,105330.0,105320.0,0.95079524]
[1749294574097,1.11528364,105330.0,105320.0,0.96028957]
[1749294574292,1.12477761,105330.0,105320.0,0.96028957]
[1749294574499,1.12477689,105330.0,105320.0,0.96028957]
[1749294574684,1.12477689,105330.0,105320.0,0.92231171]
[1749294574685,1.32415028,105330.0,105320.0,0.92231171]
[1749294574892,1.32415028,105330.0,105320.0,0.92239171]
[1749294575089,1.30636341,105330.0,105320.0,0.92239171]
[1749294575409,1.30636341,105330.0,105320.0,0.91289693]
[1749294575595,1.3241512,105330.0,105320.0,0.92239171]
[1749294575809,1.30636341,105330.0,105320.0,0.92239171]
[1749294576104,1.3241512,105330.0,105320.0,0.92239171]
[1749294576645,1.32415121,105330.0,105320.0,0.9318864]
[1749294576845,1.30636341,105330.0,105320.0,0.91289693]
[1749294577067,1.32415121,105330.0,105320.0,0.92239171]
[1749294577302,1.30636341,105330.0,105320.0,0.92239171]
[1749294577505,1.12477782,105330.0,105320.0,0.9318864]
[1749294577668,1.13427179,105330.0,105320.0,0.941381]
[1749294578009,1.13427179,105330.0,105320.0,0.9318864]
[1749294578234,1.13427179,105330.0,105320.0,0.941381]
[1749294579156,1.13427179,105330.0,105320.0,0.95087551]
[1749294579958,1.11648399,105330.0,105320.0,0.95087551]
[1749294580247,1.30636341,105330.0,105320.0,0.91289693]
[1749294580545,1.31468061,105330.0,105320.0,0.93188658]
[1749294580725,1.31468061,105330.0,105320.0,0.94138127]
[1749294580934,1.31468061,105330.0,105320.0,0.95087587]
[1749294581145,1.31468059,105330.0,105320.0,0.94138127]
[1749294582074,1.31468061,105330.0,105320.0,0.94138127]
[1749294582292,1.29687007,105330.0,105320.0,0.94138127]
[1749294582432,1.31468061,105330.0,105320.0,0.94138127]
[1749294582843,1.31468065,105330.0,105320.0,0.94138127]
[1749294583215,1.31468067,105330.0,105320.0,0.94138127]
[1749294583718,1.29687007,105330.0,105320.0,0.94138127]
[1749294583920,1.31468067,105330.0,105320.0,0.94138127]
[1749294584902,1.31468067,105330.0,105320.0,0.93188658]
[1749294585107,1.31468067,105330.0,105320.0,0.94138127]
[1749294585345,1.31468087,105330.0,105320.0,0.94138127]
[1749294585738,1.29687007,105330.0,105320.0,0.94138127]
[1749294585945,1.31468087,105330.0,105320.0,0.94138127]
[1749294586250,1.31468087,105330.0,105320.0,0.91289693]
[1749294586542,1.31468087,105330.0,105320.0,0.92239162]
[1749294586747,1.31468122,105330.0,105320.0,0.92239162]
[1749294586948,1.29687007,105330.0,105320.0,0.92239162]
[1749294587311,1.31468122,105330.0,105320.0,0.92239162]
[1749294587649,1.1248018,105330.0,105320.0,0.93188622]
[1749294588016,1.1248018,105330.0,105320.0,0.92239162]
[1749294588756,1.1248018,105330.0,105320.0,0.93188622]
[1749294588907,1.1248018,105330.0,105320.0,0.92239162]
[1749294589311,1.10699065,105330.0,105320.0,0.92239162]
[1749294589552,1.1248018,105330.0,105320.0,0.92239162]
[1749294589757,1.10699065,105330.0,105320.0,0.92239162]
[1749294589958,1.12480214,105330.0,105320.0,0.92239162]
[1749294590193,1.12480228,105330.0,105320.0,0.92239162]
[1749294590509,1.10699065,105330.0,105320.0,0.92239162]
[1749294590723,1.12480254,105330.0,105320.0,0.92239162]
[1749294590919,1.29687007,105330.0,105320.0,0.93188649]
[1749294591101,1.31468198,105330.0,105320.0,0.93188649]
[1749294592346,1.29687007,105330.0,105320.0,0.93188649]
[1749294592466,1.31468259,105330.0,105320.0,0.93188649]
[1749294592869,1.29687007,105330.0,105320.0,0.93188649]
[1749294593075,1.31468259,105330.0,105320.0,0.93188649]
[1749294593326,1.31468259,105330.0,105320.0,0.94138109]
[1749294593554,1.31468259,105330.0,105320.0,0.93188649]
[1749294593695,1.12480317,105330.0,105320.0,0.93188649]
[1749294593892,1.12480317,105330.0,105320.0,0.94138109]
[1749294594316,1.10699065,105330.0,105320.0,0.93188658]
[1749294594520,1.12480394,105330.0,105320.0,0.93188658]
[1749294595156,1.12480394,105330.0,105320.0,0.94138127]
[1749294595722,1.12480374,105330.0,105320.0,0.94138127]
[1749294597700,1.1248035,105330.0,105320.0,0.94138127]
[1749294598168,1.10699065,105330.0,105320.0,0.95087587]
[1749294598762,1.31468292,105330.0,105320.0,0.94138127]
[1749294598969,1.31468294,105330.0,105320.0,0.94138127]
[1749294599602,1.31468277,105330.0,105320.0,0.94138127]
[1749294600223,1.29687007,105330.0,105320.0,0.94138127]
[1749294600456,1.31468277,105330.0,105320.0,0.94138127]
[1749294601255,1.12480335,105330.0,105320.0,0.94138127]
[1749294601474,1.31468277,105330.0,105320.0,0.94138127]
[1749294601703,1.31468274,105330.0,105320.0,0.94138127]
[1749294601907,1.29687007,105330.0,105320.0,0.93188658]
[1749294602046,1.31468274,105330.0,105320.0,0.94138127]
[1749294603249,1.31468274,105330.0,105320.0,0.93188658]
[1749294603498,1.31468282,105330.0,105320.0,0.93188649]
[1749294603719,1.29687007,105330.0,105320.0,0.93188649]
[1749294603931,1.30518921,105330.0,105320.0,0.92239171]
[1749294604159,1.30518921,105330.0,105320.0,0.9318864]
[1749294604796,1.30518911,105330.0,105320.0,0.941381]
[1749294605003,1.30518911,105330.0,105320.0,0.91289693]
[1749294605355,1.30518911,105330.0,105320.0,0.9223918]
[1749294605568,1.30518911,105330.0,105320.0,0.93188649]
[1749294605973,1.28737646,105330.0,105320.0,0.34271948]
[1749294606198,1.30518912,105330.0,105320.0,0.24632]
[1749294606339,1.8513984,105330.0,105320.0,0.24632]
[1749294606539,1.87420038,105330.0,105320.0,0.6268]
[1749294607502,1.37590268,105330.0,105320.0,0.6268]
[1749294607715,1.3759027,105330.0,105320.0,0.6268]
[1749294608051,1.35308617,105330.0,105320.0,0.6268]
[1749294608456,1.35308618,105330.0,105320.0,0.6268]
[1749294609001,1.35308573,105330.0,105320.0,0.6268]
[1749294609239,1.33528574,105330.0,105320.0,0.6268]
[1749294609440,1.35308573,105330.0,105320.0,0.6268]
[1749294609974,1.35308573,105330.0,105320.0,0.62612]
[1749294611053,1.35307957,105330.0,105320.0,0.62612]
[1749294611267,1.33528574,105330.0,105320.0,0.62612]
[1749294611678,1.35307894,105330.0,105320.0,0.62612]
[1749294612844,0.60049101,105310.0,105300.0,0.47172067]
[1749294613121,0.60049101,105310.0,105300.0,0.64778393]
[1749294613678,0.60049101,105310.0,105300.0,0.65728015]
[1749294613912,0.60049101,105310.0,105300.0,0.64778393]
[1749294614146,0.60049101,105310.0,105300.0,0.93926393]
[1749294614378,0.59099524,105310.0,105300.0,0.93926393]
[1749294614617,0.59099524,105310.0,105300.0,0.94126393]
[1749294614857,0.60049101,105310.0,105300.0,0.95076015]
[1749294615396,0.60049092,105310.0,105300.0,0.95076015]
[1749294615599,0.60049092,105310.0,105300.0,0.93176753]
[1749294615801,0.60049092,105310.0,105300.0,0.94126375]
[1749294616605,0.60049092,105310.0,105300.0,0.93176753]
[1749294616759,0.61649092,105310.0,105300.0,0.93176753]
[1749294616977,0.62598669,105310.0,105300.0,0.93176753]
[1749294617186,0.60049092,105310.0,105300.0,0.94126375]
[1749294617588,0.60049074,105310.0,105300.0,0.95075988]
[1749294618423,0.05428146,105310.0,105300.0,0.95075988]
[1749294619266,0.04478578,105310.0,105300.0,0.95075988]
[1749294619399,0.05428146,105310.0,105300.0,0.95075988]
[1749294619595,0.60049074,105310.0,105300.0,0.92227122]
[1749294619799,0.78091117,105310.0,105300.0,0.92227131]
[1749294620245,0.78091117,105310.0,105300.0,0.9412642]
[1749294620441,0.78091117,105310.0,105300.0,0.9317678]
[1749294620690,0.78091117,105310.0,105300.0,0.9412642]
[1749294620875,0.78091117,105310.0,105300.0,0.91277473]
[1749294621043,0.77141585,105310.0,105300.0,0.9222714]
[1749294621246,0.78920247,105310.0,105300.0,0.9222714]
[1749294621451,0.78920248,105310.0,105300.0,0.93176798]
[1749294621659,0.77141585,105310.0,105300.0,0.93176798]
[1749294621870,0.77141585,105310.0,105300.0,0.93184798]
[1749294622369,0.78920148,105310.0,105300.0,0.93184798]
[1749294622573,0.77141585,105310.0,105300.0,0.93184798]
[1749294622984,0.78920148,105310.0,105300.0,0.93184798]
[1749294623532,0.77141585,105310.0,105300.0,0.94134447]
[1749294625318,0.75242476,105310.0,105300.0,0.43487948]
[1749294625521,0.78560555,105310.0,105300.0,0.72531948]
[1749294625723,0.78560559,105310.0,105300.0,0.72531948]
[1749294625922,0.7856056,105310.0,105300.0,0.72531948]
[1749294626134,0.76782476,105310.0,105300.0,0.72531948]
[1749294626319,0.7856056,105310.0,105300.0,0.72531948]
[1749294627364,0.76782476,105310.0,105300.0,0.72531948]
[1749294627503,0.78560513,105310.0,105300.0,0.72531948]
[1749294627914,0.76782476,105310.0,105300.0,0.72531948]
[1749294628138,0.78560513,105310.0,105300.0,0.72531948]
[1749294628845,0.78560513,105310.0,105300.0,0.92474967]
[1749294629192,0.76782476,105310.0,105300.0,0.92474967]
[1749294629629,0.78560506,105310.0,105300.0,0.92474967]
[1749294631450,0.75242476,105310.0,105300.0,0.92474967]
[1749294631657,0.77020443,105310.0,105300.0,0.92474967]
[1749294632244,0.77020418,105310.0,105300.0,0.92474967]
[1749294632454,0.77020418,105310.0,105300.0,0.915253]
[1749294632655,0.75242476,105310.0,105300.0,0.915253]
[1749294633015,0.77021022,105310.0,105300.0,0.915253]
[1749294634007,0.77021022,105310.0,105300.0,0.72531948]
[1749294634625,0.77022858,105310.0,105300.0,0.72531948]
[1749294635943,0.77022889,105310.0,105300.0,0.72531948]
[1749294636765,0.75242476,105310.0,105300.0,0.72531948]
[1749294636943,0.77022889,105310.0,105300.0,0.72531948]
[1749294637797,0.77022703,105310.0,105300.0,0.72531948]
[1749294637999,0.75242476,105310.0,105300.0,0.72531948]
[1749294638194,0.77022841,105310.0,105300.0,0.72531948]
[1749294638402,0.75242476,105310.0,105300.0,0.72531948]
[1749294638602,0.77022841,105310.0,105300.0,0.72531948]
[1749294639788,0.75242476,105310.0,105300.0,0.72531948]
[1749294640130,0.77022786,105310.0,105300.0,0.72531948]
[1749294640289,0.75242476,105310.0,105300.0,0.72531948]
[1749294640488,0.77023031,105310.0,105300.0,0.72531948]
[1749294641032,0.78533031,105310.0,105300.0,0.72531948]
[1749294641828,0.76752476,105310.0,105300.0,0.72531948]
[1749294642270,0.75242476,105310.0,105300.0,0.72531948]
[1749294642444,0.77022962,105310.0,105300.0,0.72531948]
[1749294643516,0.77022938,105310.0,105300.0,0.72531948]
[1749294643721,0.75242476,105310.0,105300.0,0.72531948]
[1749294643853,0.77022938,105310.0,105300.0,0.72531948]
[1749294644836,0.78532938,105310.0,105300.0,0.72411948]
[1749294645257,0.78532938,105310.0,105300.0,0.24932]
[1749294645474,0.78533038,105310.0,105300.0,0.62776]
[1749294645682,0.76752476,105310.0,105300.0,0.62776]
[1749294645918,0.78533057,105310.0,105300.0,0.62776]
[1749294647356,0.76752476,105310.0,105300.0,0.62776]
[1749294647764,0.78532463,105310.0,105300.0,0.62776]
[1749294648358,0.78532416,105310.0,105300.0,0.62776]
[1749294648690,0.76752476,105310.0,105300.0,0.62776]
[1749294649507,0.78532415,105310.0,105300.0,0.62776]
[1749294649704,0.78532416,105310.0,105300.0,0.62776]
[1749294649902,0.76752476,105310.0,105300.0,0.62776]
[1749294650580,0.78532416,105310.0,105300.0,0.62776]
[1749294650780,0.76752476,105310.0,105300.0,0.62776]
[1749294651064,0.78532416,105310.0,105300.0,0.62776]
[1749294651264,0.76752476,105310.0,105300.0,0.62776]
[1749294651495,1.75013352,105310.0,105300.0,0.24932]
[1749294651614,1.77291689,105310.0,105300.0,0.62756]
[1749294651814,1.67651741,105310.0,105300.0,0.62756]
[1749294652018,1.6943188,105310.0,105300.0,0.62756]
[1749294652266,1.70885966,105310.0,105300.0,0.001]
[1749294652477,6.86591057,105310.0,105300.0,0.2906]
[1749294652702,6.98011132,105310.0,105300.0,0.2906]
[1749294652926,0.56993001,105300.0,105290.0,0.08868]
[1749294653052,1.68513194,105300.0,105290.0,0.37824]
[1749294653453,1.70293293,105300.0,105290.0,0.37824]
[1749294654100,1.68513194,105300.0,105290.0,0.37824]
[1749294654312,1.79933241,105300.0,105290.0,0.37824]
[1749294654542,1.80133241,105300.0,105290.0,0.37824]
[1749294654964,1.78453142,105300.0,105290.0,0.37824]
[1749294655099,1.80231059,105300.0,105290.0,0.37824]
[1749294655687,1.78453142,105300.0,105290.0,0.37824]
[1749294655892,1.80231059,105300.0,105290.0,0.3782]
[1749294656297,1.78453142,105300.0,105290.0,0.3782]
[1749294656506,1.80231059,105300.0,105290.0,0.3782]
[1749294657330,1.83023504,105300.0,105290.0,0.3782]
[1749294657736,1.81245587,105300.0,105290.0,0.3782]
[1749294658165,1.80745167,105300.0,105290.0,0.3782]
[1749294658525,1.80745166,105300.0,105290.0,0.3782]
[1749294658734,1.7896725,105300.0,105290.0,0.3782]
[1749294658921,1.71105219,105300.0,105290.0,0.3782]
[1749294659273,1.69327302,105300.0,105290.0,0.3782]
[1749294659927,1.71105096,105300.0,105290.0,0.3782]
[1749294660213,0.77805823,105290.0,105280.0,0.09862862]
[1749294660418,0.79583614,105290.0,105280.0,0.09910786]
[1749294660737,0.79583615,105290.0,105280.0,0.09910786]
[1749294661166,0.79583615,105290.0,105280.0,0.38862786]
[1749294661665,0.79583615,105290.0,105280.0,0.38962786]
[1749294661866,0.77805823,105290.0,105280.0,0.38962786]
[1749294661997,0.79583503,105290.0,105280.0,0.38962786]
[1749294662412,0.77805823,105290.0,105280.0,0.38962786]
[1749294662906,0.79583503,105290.0,105280.0,0.38962786]
[1749294663242,0.77953503,105290.0,105280.0,0.38962786]
[1749294663876,0.79603502,105290.0,105280.0,0.38962786]
[1749294664437,0.79603501,105290.0,105280.0,0.38962786]
[1749294664893,0.77825823,105290.0,105280.0,0.38962786]
[1749294665146,0.79603501,105290.0,105280.0,0.38962786]
[1749294665723,0.79602525,105290.0,105280.0,0.38962786]
[1749294666055,0.77952525,105290.0,105280.0,0.38962786]
[1749294666607,0.76175823,105290.0,105280.0,0.38962786]
[1749294666803,0.77952525,105290.0,105280.0,0.38962786]
[1749294667983,0.77952095,105290.0,105280.0,0.38962786]
[1749294669444,0.76175823,105290.0,105280.0,0.38962786]
[1749294670352,0.7795217,105290.0,105280.0,0.38962786]
[1749294670876,0.7795219,105290.0,105280.0,0.38962786]
[1749294671201,0.76175823,105290.0,105280.0,0.38962786]
[1749294671613,0.77952515,105290.0,105280.0,0.38962786]
[1749294672432,0.77952514,105290.0,105280.0,0.38962786]
[1749294672651,0.03676106,105290.0,105280.0,0.73599128]
[1749294672825,0.05575602,105290.0,105280.0,0.73599146]
[1749294673027,0.04748578,105290.0,105280.0,0.75498723]
[1749294673234,0.04748578,105290.0,105280.0,0.74548939]
[1749294673426,0.06526392,105290.0,105280.0,0.75498723]
[1749294673666,0.0379883,105290.0,105280.0,0.75498723]
[1749294673875,0.05576667,105290.0,105280.0,0.75498723]
[1749294674077,0.04626917,105290.0,105280.0,0.75498723]
[1749294674220,0.05576656,105290.0,105280.0,0.75498723]
[1749294674630,0.04626886,105290.0,105280.0,0.75498723]
[1749294674875,0.05576625,105290.0,105280.0,0.75498723]
[1749294675070,0.02849091,105290.0,105280.0,0.75498723]
[1749294675225,0.05576616,105290.0,105280.0,0.75498723]
[1749294675427,0.05576918,105290.0,105280.0,0.75498723]
[1749294675763,0.0379883,105290.0,105280.0,0.75498723]
[1749294676350,0.05577514,105290.0,105280.0,0.75498723]
[1749294676548,0.04748578,105290.0,105280.0,0.75498723]
[1749294677303,0.06527262,105290.0,105280.0,0.75498723]
[1749294678205,0.06527343,105290.0,105280.0,0.75498723]
[1749294678366,0.06529104,105290.0,105280.0,0.75498723]
[1749294678766,0.04748659,105290.0,105280.0,0.75498723]
[1749294679332,0.06529104,105290.0,105280.0,0.75498723]
[1749294679940,0.06529104,105290.0,105280.0,0.73898723]
[1749294680147,0.0557941,105290.0,105280.0,0.72948939]
[1749294680346,0.24574566,105290.0,105280.0,0.72924939]
[1749294680640,0.24574565,105290.0,105280.0,0.35124939]
[1749294680864,0.23624844,105290.0,105280.0,0.32275533]
[1749294681069,0.23305357,105290.0,105280.0,0.67575694]
[1749294681348,0.23305357,105290.0,105280.0,0.30725542]
[1749294681556,0.23304985,105290.0,105280.0,0.69475381]
[1749294681867,0.23304985,105290.0,105280.0,0.7137503]
[1749294682069,0.23304985,105290.0,105280.0,0.73874832]
[1749294682379,0.21724985,105290.0,105280.0,0.73874832]
[1749294683364,0.19944913,105290.0,105280.0,0.73874832]
[1749294683697,0.21724985,105290.0,105280.0,0.7197521]
[1749294683867,0.19944913,105290.0,105280.0,0.7292503]
[1749294684029,0.21724985,105290.0,105280.0,0.7292503]
[1749294684573,0.21724985,105290.0,105280.0,0.7197521]
[1749294684722,0.21724985,105290.0,105280.0,0.73874841]
[1749294684925,0.21724763,105290.0,105280.0,0.73874841]
[1749294685314,0.19944913,105290.0,105280.0,0.73874841]
[1749294685522,0.22355006,105290.0,105280.0,0.50128734]
[1749294685729,0.76836084,105290.0,105280.0,0.48578734]
[1749294685945,0.76836084,105290.0,105280.0,0.01138786]
[1749294686146,0.78616155,105290.0,105280.0,0.01138786]
[1749294686358,0.78616155,105290.0,105280.0,0.38938786]
[1749294688914,0.78615963,105290.0,105280.0,0.38938786]
[1749294689302,0.78615965,105290.0,105280.0,0.38938786]
[1749294689418,0.78615964,105290.0,105280.0,0.38938786]
[1749294689616,0.7861596,105290.0,105280.0,0.38938786]
[1749294690586,0.78615894,105290.0,105280.0,0.38938786]
[1749294690931,0.76836084,105290.0,105280.0,0.38938786]
[1749294691363,0.78615894,105290.0,105280.0,0.38938786]
[1749294691569,0.76836084,105290.0,105280.0,0.38938786]
[1749294691775,0.78615894,105290.0,105280.0,0.38938786]
[1749294693480,0.78615964,105290.0,105280.0,0.38938786]
[1749294694242,0.76836084,105290.0,105280.0,0.38938786]
[1749294694697,0.78615955,105290.0,105280.0,0.38938786]
[1749294695012,0.78615956,105290.0,105280.0,0.38938786]
[1749294696117,0.76836084,105290.0,105280.0,0.38938786]
[1749294696362,0.78615914,105290.0,105280.0,0.38938786]
[1749294697176,0.23994986,105290.0,105280.0,0.38938786]
[1749294697383,0.78615914,105290.0,105280.0,0.38938786]
[1749294697584,0.76836084,105290.0,105280.0,0.38938786]
[1749294697817,0.7861577,105290.0,105280.0,0.38938786]
[1749294698022,0.76836084,105290.0,105280.0,0.38938786]
[1749294698234,0.78615769,105290.0,105280.0,0.38938786]
[1749294698450,0.78615864,105290.0,105280.0,0.38938786]
[1749294699024,0.78615864,105290.0,105280.0,0.01138786]
[1749294699255,1.72438104,105290.0,105280.0,0.01138786]
[1749294699482,6.75658302,105290.0,105280.0,0.30090786]
[1749294699704,6.77438119,105290.0,105280.0,0.30090786]
[1749294699907,6.77438169,105290.0,105280.0,0.30090786]
[1749294700140,6.1989401,105290.0,105280.0,0.30090786]
[1749294700353,6.19894031,105290.0,105280.0,0.30090786]
[1749294700563,6.17615972,105290.0,105280.0,0.30090786]
[1749294700732,6.17615826,105290.0,105280.0,0.30090786]
[1749294701102,6.18282264,105290.0,105280.0,0.30090786]
[1749294701476,6.16503222,105290.0,105280.0,0.30090786]
[1749294701694,6.18282289,105290.0,105280.0,0.30090786]
[1749294702079,6.20560001,105290.0,105280.0,0.30090786]
[1749294702810,6.20559921,105290.0,105280.0,0.30090786]
[1749294702962,6.18281978,105290.0,105280.0,0.30090786]
[1749294703177,6.16503146,105290.0,105280.0,0.30090786]
[1749294703343,6.18281978,105290.0,105280.0,0.30090786]
[1749294704206,6.18281867,105290.0,105280.0,0.30090786]
[1749294704402,6.17614916,105290.0,105280.0,0.30090786]
[1749294704581,6.18780617,105290.0,105280.0,0.30090786]
[1749294704783,1.12140617,105290.0,105280.0,0.30090786]
[1749294704964,1.13919099,105290.0,105280.0,0.30090786]
[1749294705310,0.59298335,105290.0,105280.0,0.31680786]
[1749294705528,1.13919261,105290.0,105280.0,0.31680786]
[1749294705690,1.11641679,105290.0,105280.0,0.31680786]
[1749294705871,1.11641675,105290.0,105280.0,0.31680786]
[1749294706272,1.10974695,105290.0,105280.0,0.31680786]
[1749294706906,1.09863063,105290.0,105280.0,0.31680786]
[1749294707117,1.10974695,105290.0,105280.0,0.31680786]
[1749294707325,1.11641674,105290.0,105280.0,0.31680786]
[1749294708400,1.11641755,105290.0,105280.0,0.31680786]
[1749294708699,1.1097491,105290.0,105280.0,0.31680786]
[1749294708914,1.1164197,105290.0,105280.0,0.31680786]
[1749294709512,1.11641861,105290.0,105280.0,0.31680786]
[1749294709714,1.10974891,105290.0,105280.0,0.31680786]
[1749294709916,1.09196084,105290.0,105280.0,0.31680786]
[1749294710114,1.10974815,105290.0,105280.0,0.31680786]
[1749294710533,1.11641839,105290.0,105280.0,0.31680786]
[1749294711250,1.11642259,105290.0,105280.0,0.31680786]
[1749294711684,1.10975235,105290.0,105280.0,0.31680786]
[1749294711885,1.09863265,105290.0,105280.0,0.31680786]
[1749294712039,1.09196084,105290.0,105280.0,0.31680786]
[1749294712247,1.09863265,105290.0,105280.0,0.31680786]
[1749294712563,1.11642416,105290.0,105280.0,0.31680786]
[1749294713569,1.09863345,105290.0,105280.0,0.31680786]
[1749294713980,1.11642708,105290.0,105280.0,0.31680786]